[Event "*** Titled Tuesday Blitz"]
[Site "Chess.com"]
[Date "2020.12.01"]
[Round "10"]
[White "bylavochka"]
[Black "googlegoom"]
[Result "1-0"]
[WhiteElo "2269"]
[BlackElo "2438"]
[TimeControl "180+1"]
[EndTime "11:54:54 PST"]
[Termination "bylavochka won by checkmate"]

1. e4 {[%clk 0:03:00.9]} 1... c5 {[%clk 0:02:59.6]} 2. Nf3 {[%clk 0:03:00.7]}
2... Nc6 {[%clk 0:02:59.9]} 3. d4 {[%clk 0:02:57.1]} 3... cxd4 {[%clk
0:03:00.1]} 4. Nxd4 {[%clk 0:02:58]} 4... Qb6 {[%clk 0:03:00.7]} 5. Nb3 {[%clk
0:02:53]} 5... Nf6 {[%clk 0:03:00.8]} 6. Nc3 {[%clk 0:02:45.2]} 6... e6 {[%clk
0:02:59.5]} 7. Be3 {[%clk 0:02:44.1]} 7... Qc7 {[%clk 0:02:59.3]} 8. Qd2 {[%clk
0:02:21]} 8... Bb4 {[%clk 0:02:55.3]} 9. f3 {[%clk 0:02:18.6]} 9... d5 {[%clk
0:02:55.1]} 10. exd5 {[%clk 0:01:54.8]} 10... Nxd5 {[%clk 0:02:52.8]} 11. Bc4
{[%clk 0:01:13.8]} 11... Nxe3 {[%clk 0:02:42.1]} 12. Qxe3 {[%clk 0:01:09.4]}
12... O-O {[%clk 0:02:33.6]} 13. O-O-O {[%clk 0:01:02.1]} 13... a6 {[%clk
0:02:28.1]} 14. Ne4 {[%clk 0:00:32.5]} 14... b5 {[%clk 0:02:21]} 15. Be2 {[%clk
0:00:32]} 15... e5 {[%clk 0:02:04.8]} 16. Kb1 {[%clk 0:00:28.5]} 16... Ne7
{[%clk 0:01:43.6]} 17. g4 {[%clk 0:00:24.2]} 17... Ng6 {[%clk 0:01:39.6]} 18. h4
{[%clk 0:00:18.4]} 18... Nf4 {[%clk 0:01:38.6]} 19. Bd3 {[%clk 0:00:17.5]} 19...
a5 {[%clk 0:01:20.8]} 20. Ng5 {[%clk 0:00:14.6]} 20... Nxd3 {[%clk 0:01:10.1]}
21. Qxd3 {[%clk 0:00:11.3]} 21... f5 {[%clk 0:01:09.9]} 22. Qd5+ {[%clk
0:00:11.2]} 22... Kh8 {[%clk 0:01:09.4]} 23. Qxa8 {[%clk 0:00:10.4]} 23... a4
{[%clk 0:01:08.3]} 24. Nc1 {[%clk 0:00:10.4]} 24... a3 {[%clk 0:01:05.6]} 25.
Qd5 {[%clk 0:00:09.2]} 25... axb2 {[%clk 0:01:04.6]} 26. Nb3 {[%clk 0:00:08]}
26... h6 {[%clk 0:00:53]} 27. Ne6 {[%clk 0:00:05.8]} 27... Bxe6 {[%clk
0:00:52.9]} 28. Qxe6 {[%clk 0:00:06.7]} 28... Rc8 {[%clk 0:00:51.4]} 29. Rh2
{[%clk 0:00:03.6]} 29... fxg4 {[%clk 0:00:48.8]} 30. fxg4 {[%clk 0:00:01.4]}
30... Bf8 {[%clk 0:00:48.2]} 31. Qf5 {[%clk 0:00:01.5]} 31... Re8 {[%clk
0:00:46.8]} 32. g5 {[%clk 0:00:01.5]} 32... Qc6 {[%clk 0:00:44.5]} 33. gxh6
{[%clk 0:00:02]} 33... Qxh6 {[%clk 0:00:43]} 34. Rg2 {[%clk 0:00:02.4]} 34...
Ba3 {[%clk 0:00:39.8]} 35. Rg6 {[%clk 0:00:01.8]} 35... Qh7 {[%clk 0:00:38.3]}
36. h5 {[%clk 0:00:01.5]} 36... Rf8 {[%clk 0:00:38.6]} 37. Qe4 {[%clk
0:00:01.5]} 37... Re8 {[%clk 0:00:38.7]} 38. Rdg1 {[%clk 0:00:01.8]} 38... Re7
{[%clk 0:00:38.3]} 39. Qg4 {[%clk 0:00:02.1]} 39... Bb4 {[%clk 0:00:36.4]} 40.
h6 {[%clk 0:00:02.3]} 40... Bc3 {[%clk 0:00:34.5]} 41. hxg7+ {[%clk 0:00:02.5]}
41... Kg8 {[%clk 0:00:35.4]} 42. Qc8+ {[%clk 0:00:02.2]} 42... Kf7 {[%clk
0:00:35.8]} 43. g8=Q+ {[%clk 0:00:02.4]} 43... Qxg8 {[%clk 0:00:35.7]} 44. Qxg8#
{[%clk 0:00:02.9]} 1-0

[Event "*** Titled Tuesday Blitz"]
[Site "Chess.com"]
[Date "2020.12.01"]
[Round "10"]
[White "Road2GM3000"]
[Black "ybruned"]
[Result "1-0"]
[WhiteElo "2132"]
[BlackElo "2252"]
[TimeControl "180+1"]
[EndTime "11:54:54 PST"]
[Termination "Road2GM3000 won on time"]

1. e4 {[%clk 0:03:00.9]} 1... c5 {[%clk 0:02:59.2]} 2. d4 {[%clk 0:03:00.5]}
2... cxd4 {[%clk 0:02:59.1]} 3. c3 {[%clk 0:03:00.4]} 3... dxc3 {[%clk
0:02:59.7]} 4. Nxc3 {[%clk 0:03:00.9]} 4... e6 {[%clk 0:02:59.3]} 5. Bc4 {[%clk
0:03:00.9]} 5... a6 {[%clk 0:02:59.9]} 6. Nf3 {[%clk 0:03:00.8]} 6... b5 {[%clk
0:03:00.4]} 7. Bb3 {[%clk 0:02:59.2]} 7... Bb7 {[%clk 0:03:00.9]} 8. O-O {[%clk
0:02:59.2]} 8... d6 {[%clk 0:03:01.4]} 9. Bf4 {[%clk 0:02:58.3]} 9... Nf6 {[%clk
0:02:56.1]} 10. Qe2 {[%clk 0:02:58]} 10... Nbd7 {[%clk 0:02:44.8]} 11. Rfd1
{[%clk 0:02:58]} 11... b4 {[%clk 0:02:30.1]} 12. Ng5 {[%clk 0:02:33.8]} 12...
Be7 {[%clk 0:02:16.9]} 13. Nxf7 {[%clk 0:02:33.7]} 13... Kxf7 {[%clk 0:02:12]}
14. Bxe6+ {[%clk 0:02:34.2]} 14... Kxe6 {[%clk 0:02:11.1]} 15. Qc4+ {[%clk
0:02:33.8]} 15... d5 {[%clk 0:01:11.1]} 16. exd5+ {[%clk 0:02:33.4]} 16... Kf7
{[%clk 0:01:08.3]} 17. d6+ {[%clk 0:02:31.9]} 17... Kf8 {[%clk 0:01:08.5]} 18.
Re1 {[%clk 0:02:20.8]} 18... bxc3 {[%clk 0:01:02.9]} 19. dxe7+ {[%clk
0:02:19.8]} 19... Qxe7 {[%clk 0:01:01.8]} 20. Rxe7 {[%clk 0:02:18.6]} 20... Kxe7
{[%clk 0:01:02]} 21. Qb4+ {[%clk 0:02:15.9]} 21... Kf7 {[%clk 0:00:59.1]} 22.
Qxb7 {[%clk 0:02:14.4]} 22... cxb2 {[%clk 0:00:53.1]} 23. Qb3+ {[%clk
0:02:13.8]} 23... Kg6 {[%clk 0:00:51.3]} 24. Qxb2 {[%clk 0:02:07]} 24... Rhe8
{[%clk 0:00:49]} 25. Qc2+ {[%clk 0:02:04.1]} 25... Kf7 {[%clk 0:00:47.9]} 26.
Qc4+ {[%clk 0:02:02.7]} 26... Kg6 {[%clk 0:00:37.5]} 27. h4 {[%clk 0:01:59.4]}
27... h6 {[%clk 0:00:34.7]} 28. Qd3+ {[%clk 0:01:58.3]} 28... Kf7 {[%clk
0:00:34]} 29. Rb1 {[%clk 0:01:41.9]} 29... Re4 {[%clk 0:00:24.7]} 30. g3 {[%clk
0:01:27.7]} 30... Rae8 {[%clk 0:00:22.2]} 31. Rb7 {[%clk 0:01:26.3]} 31... R4e7
{[%clk 0:00:16.3]} 32. Bd6 {[%clk 0:01:20.8]} 32... Re1+ {[%clk 0:00:14.8]} 33.
Kg2 {[%clk 0:01:11.9]} 33... Kg8 {[%clk 0:00:14.8]} 34. Bb4 {[%clk 0:01:09.2]}
34... R1e6 {[%clk 0:00:08.3]} 35. Rxd7 {[%clk 0:01:08.2]} 35... Nxd7 {[%clk
0:00:08.4]} 36. Qxd7 {[%clk 0:01:09.1]} 36... Kh7 {[%clk 0:00:06.1]} 37. Qd3+
{[%clk 0:01:07.6]} 37... Kg8 {[%clk 0:00:05.6]} 38. Bc3 {[%clk 0:01:08]} 38...
R6e7 {[%clk 0:00:05.5]} 39. Qxa6 {[%clk 0:01:07.9]} 39... Rf7 {[%clk 0:00:05.2]}
40. Qg6 {[%clk 0:01:04.7]} 40... Re2 {[%clk 0:00:03.3]} 41. Bd4 {[%clk
0:00:43.8]} 41... Rxa2 {[%clk 0:00:03]} 42. Be3 {[%clk 0:00:44.2]} 42... Ra8
{[%clk 0:00:01.1]} 43. h5 {[%clk 0:00:39.8]} 43... Raf8 {[%clk 0:00:02]} 44. Kh3
{[%clk 0:00:38.7]} 1-0

[Event "*** Titled Tuesday Blitz"]
[Site "Chess.com"]
[Date "2020.12.01"]
[Round "10"]
[White "Perecke"]
[Black "TrenerChos"]
[Result "1-0"]
[WhiteElo "2387"]
[BlackElo "2198"]
[TimeControl "180+1"]
[EndTime "11:54:58 PST"]
[Termination "Perecke won on time"]

1. e4 {[%clk 0:02:59.1]} 1... c5 {[%clk 0:03:00.6]} 2. Nf3 {[%clk 0:02:58.5]}
2... Nc6 {[%clk 0:02:58.7]} 3. d4 {[%clk 0:02:58.5]} 3... cxd4 {[%clk
0:02:59.3]} 4. Nxd4 {[%clk 0:02:59.4]} 4... e5 {[%clk 0:02:58.5]} 5. Nb5 {[%clk
0:02:52.6]} 5... a6 {[%clk 0:02:58]} 6. Nd6+ {[%clk 0:02:50.9]} 6... Bxd6 {[%clk
0:02:58]} 7. Qxd6 {[%clk 0:02:51.8]} 7... Qf6 {[%clk 0:02:58.1]} 8. Qd1 {[%clk
0:02:50.7]} 8... Qg6 {[%clk 0:02:54.6]} 9. Nc3 {[%clk 0:02:50.3]} 9... d5 {[%clk
0:02:52.8]} 10. Nxd5 {[%clk 0:02:26.7]} 10... Qxe4+ {[%clk 0:02:48.3]} 11. Be2
{[%clk 0:02:17.2]} 11... Nd4 {[%clk 0:02:38.2]} 12. Nc7+ {[%clk 0:02:08.2]}
12... Ke7 {[%clk 0:02:36]} 13. Nxa8 {[%clk 0:02:06]} 13... Qxg2 {[%clk
0:02:34.7]} 14. Rf1 {[%clk 0:01:51.7]} 14... Bf5 {[%clk 0:02:31.9]} 15. Be3
{[%clk 0:00:48.7]} 15... Nxc2+ {[%clk 0:02:18.6]} 16. Kd2 {[%clk 0:00:48.2]}
16... Nh6 {[%clk 0:01:54.9]} 17. Bc5+ {[%clk 0:00:22.8]} 17... Kf6 {[%clk
0:01:49.9]} 18. Kc1 {[%clk 0:00:16]} 18... Rc8 {[%clk 0:01:23.1]} 19. Qd6+
{[%clk 0:00:11.3]} 19... Be6 {[%clk 0:01:12.3]} 20. Nb6 {[%clk 0:00:05.3]} 20...
Rc6 {[%clk 0:00:35.1]} 21. Nd7+ {[%clk 0:00:04.6]} 21... Kg5 {[%clk 0:00:27.3]}
22. Qxe5+ {[%clk 0:00:04.2]} 22... Nf5 {[%clk 0:00:24.9]} 23. f4+ {[%clk
0:00:04.3]} 23... Kh6 {[%clk 0:00:21]} 24. Rd1 {[%clk 0:00:02.8]} 24... Nce3
{[%clk 0:00:09.6]} 25. Kb1 {[%clk 0:00:02.1]} 25... Qxe2 {[%clk 0:00:08.7]} 26.
Rc1 {[%clk 0:00:01.5]} 26... Qd3+ {[%clk 0:00:05.2]} 27. Rc2 {[%clk 0:00:01.3]}
1-0

[Event "*** Titled Tuesday Blitz"]
[Site "Chess.com"]
[Date "2020.12.01"]
[Round "10"]
[White "German_Bazeev"]
[Black "hansen"]
[Result "1-0"]
[WhiteElo "2731"]
[BlackElo "2889"]
[TimeControl "180+1"]
[EndTime "11:55:01 PST"]
[Termination "German_Bazeev won on time"]

1. d4 {[%clk 0:03:00.1]} 1... Nf6 {[%clk 0:02:59.2]} 2. Nf3 {[%clk 0:02:59.8]}
2... d5 {[%clk 0:02:46.2]} 3. c4 {[%clk 0:02:59.2]} 3... e6 {[%clk 0:02:45.8]}
4. g3 {[%clk 0:02:59.3]} 4... Bb4+ {[%clk 0:02:42.6]} 5. Bd2 {[%clk 0:02:59]}
5... Be7 {[%clk 0:02:42.8]} 6. Bg2 {[%clk 0:02:59.1]} 6... O-O {[%clk
0:02:42.9]} 7. O-O {[%clk 0:02:59.8]} 7... Nbd7 {[%clk 0:02:41.6]} 8. Qc2 {[%clk
0:02:58.2]} 8... c6 {[%clk 0:02:39.5]} 9. Rc1 {[%clk 0:02:58.7]} 9... Ne4 {[%clk
0:02:28.5]} 10. Be1 {[%clk 0:02:37]} 10... f5 {[%clk 0:02:26.4]} 11. Nc3 {[%clk
0:02:36.1]} 11... g5 {[%clk 0:02:26.5]} 12. e3 {[%clk 0:02:32.2]} 12... g4
{[%clk 0:02:25.1]} 13. Nd2 {[%clk 0:02:29.8]} 13... Bd6 {[%clk 0:02:22.8]} 14.
Rab1 {[%clk 0:02:27.4]} 14... a5 {[%clk 0:02:22.5]} 15. Ne2 {[%clk 0:02:16.9]}
15... Qf6 {[%clk 0:02:05.2]} 16. Nf4 {[%clk 0:02:16.6]} 16... Qh6 {[%clk
0:02:03.7]} 17. Nf1 {[%clk 0:02:05.9]} 17... Ng5 {[%clk 0:01:44.3]} 18. Qe2
{[%clk 0:02:01.1]} 18... Nf6 {[%clk 0:01:42.9]} 19. b4 {[%clk 0:01:31.6]} 19...
axb4 {[%clk 0:01:39.7]} 20. Bxb4 {[%clk 0:01:32.5]} 20... Bxb4 {[%clk
0:01:38.8]} 21. Rxb4 {[%clk 0:01:33.4]} 21... Nfe4 {[%clk 0:01:35.1]} 22. a4
{[%clk 0:01:30.1]} 22... Rf7 {[%clk 0:01:30.4]} 23. Qb2 {[%clk 0:01:25.6]} 23...
Qf8 {[%clk 0:01:21.6]} 24. Nd2 {[%clk 0:01:13.3]} 24... Nd6 {[%clk 0:01:13.4]}
25. c5 {[%clk 0:01:11.3]} 25... Nde4 {[%clk 0:01:11.5]} 26. Nxe4 {[%clk
0:01:11.1]} 26... fxe4 {[%clk 0:01:08.9]} 27. Qe2 {[%clk 0:01:10]} 27... Qg7
{[%clk 0:01:05.1]} 28. Rcb1 {[%clk 0:00:58]} 28... e5 {[%clk 0:01:03.4]} 29.
dxe5 {[%clk 0:00:55.6]} 29... Qxe5 {[%clk 0:01:03.6]} 30. Qb2 {[%clk 0:00:52.7]}
30... Qxb2 {[%clk 0:01:03.1]} 31. R1xb2 {[%clk 0:00:52.4]} 31... Ra5 {[%clk
0:01:02.6]} 32. Rc2 {[%clk 0:00:51.7]} 32... Kg7 {[%clk 0:00:54.7]} 33. Kf1
{[%clk 0:00:48.5]} 33... Kf6 {[%clk 0:00:54.9]} 34. Ke1 {[%clk 0:00:43.9]} 34...
Ke5 {[%clk 0:00:55.3]} 35. Kd1 {[%clk 0:00:36]} 35... Re7 {[%clk 0:00:10.8]} 36.
Rd4 {[%clk 0:00:34.2]} 36... Nf7 {[%clk 0:00:10.1]} 37. Rb4 {[%clk 0:00:32.2]}
37... Nh6 {[%clk 0:00:09.9]} 38. Ne2 {[%clk 0:00:30.1]} 38... Ng8 {[%clk
0:00:06.8]} 39. Nd4 {[%clk 0:00:29.9]} 39... Nf6 {[%clk 0:00:07.3]} 40. Bf1
{[%clk 0:00:25.9]} 40... Rf7 {[%clk 0:00:06.4]} 41. Nb3 {[%clk 0:00:26]} 41...
Ra7 {[%clk 0:00:06.4]} 42. a5 {[%clk 0:00:26.6]} 42... Ne8 {[%clk 0:00:04.2]}
43. Ke1 {[%clk 0:00:26.1]} 1-0

[Event "*** Titled Tuesday Blitz"]
[Site "Chess.com"]
[Date "2020.12.01"]
[Round "10"]
[White "Massakru"]
[Black "Vanina1989"]
[Result "0-1"]
[WhiteElo "2335"]
[BlackElo "2654"]
[TimeControl "180+1"]
[EndTime "11:55:01 PST"]
[Termination "Vanina1989 won on time"]

1. e4 {[%clk 0:03:00.9]} 1... c6 {[%clk 0:03:00.1]} 2. d4 {[%clk 0:03:00.5]}
2... d5 {[%clk 0:03:00.5]} 3. f3 {[%clk 0:03:00.9]} 3... e6 {[%clk 0:02:59.2]}
4. Nc3 {[%clk 0:03:00.5]} 4... Bb4 {[%clk 0:02:58.2]} 5. Bf4 {[%clk 0:03:00.9]}
5... Ne7 {[%clk 0:02:58.1]} 6. Ne2 {[%clk 0:02:55.3]} 6... O-O {[%clk
0:02:52.2]} 7. a3 {[%clk 0:02:54.6]} 7... Ba5 {[%clk 0:02:52.3]} 8. Bg3 {[%clk
0:02:47.5]} 8... b5 {[%clk 0:02:52.3]} 9. Qd3 {[%clk 0:02:42.8]} 9... Na6 {[%clk
0:02:47.6]} 10. Bf2 {[%clk 0:02:35.7]} 10... b4 {[%clk 0:02:47.2]} 11. axb4
{[%clk 0:02:34]} 11... Nxb4 {[%clk 0:02:47.5]} 12. Qd2 {[%clk 0:02:30.1]} 12...
Ng6 {[%clk 0:02:32.3]} 13. h4 {[%clk 0:02:19.1]} 13... dxe4 {[%clk 0:02:25.5]}
14. fxe4 {[%clk 0:02:16]} 14... e5 {[%clk 0:02:26]} 15. h5 {[%clk 0:02:13.8]}
15... Nf4 {[%clk 0:02:26.3]} 16. Nxf4 {[%clk 0:02:11.8]} 16... exf4 {[%clk
0:02:26.6]} 17. h6 {[%clk 0:01:56.2]} 17... g6 {[%clk 0:02:26.7]} 18. Bc4 {[%clk
0:01:33.7]} 18... Be6 {[%clk 0:02:20.1]} 19. d5 {[%clk 0:01:29.2]} 19... cxd5
{[%clk 0:02:18.9]} 20. exd5 {[%clk 0:01:24.2]} 20... Bf5 {[%clk 0:02:19.1]} 21.
Bb3 {[%clk 0:01:20.5]} 21... Re8+ {[%clk 0:02:17.6]} 22. Kf1 {[%clk 0:01:19.7]}
22... Bb6 {[%clk 0:01:34.9]} 23. Bd4 {[%clk 0:01:01.2]} 23... Qd6 {[%clk
0:01:23.3]} 24. Nb5 {[%clk 0:00:46.7]} 24... Qe7 {[%clk 0:01:18]} 25. d6 {[%clk
0:00:37.4]} 25... Qg5 {[%clk 0:00:55.9]} 26. Qxb4 {[%clk 0:00:19.5]} 26... Re2
{[%clk 0:00:52.8]} 27. Bxf7+ {[%clk 0:00:12.1]} 27... Kxf7 {[%clk 0:00:40.8]}
28. Qc4+ {[%clk 0:00:12.1]} 28... Re6 {[%clk 0:00:40.2]} 29. Nc7 {[%clk
0:00:10.4]} 29... Rc8 {[%clk 0:00:34.1]} 30. Bxb6 {[%clk 0:00:07.8]} 30... f3
{[%clk 0:00:28]} 31. gxf3 {[%clk 0:00:04.9]} 31... Qg3 {[%clk 0:00:23.7]} 32.
Bf2 {[%clk 0:00:04]} 32... Qxf3 {[%clk 0:00:23]} 33. Rh2 {[%clk 0:00:02.2]}
33... Bxc2 {[%clk 0:00:15.9]} 34. Qc3 {[%clk 0:00:00.9]} 34... Bd3+ {[%clk
0:00:12]} 0-1

[Event "*** Titled Tuesday Blitz"]
[Site "Chess.com"]
[Date "2020.12.01"]
[Round "10"]
[White "Kovalchuk94"]
[Black "Buffy7"]
[Result "0-1"]
[WhiteElo "2570"]
[BlackElo "2698"]
[TimeControl "180+1"]
[EndTime "11:55:04 PST"]
[Termination "Buffy7 won by resignation"]

1. e4 {[%clk 0:02:53.1]} 1... c6 {[%clk 0:02:59.9]} 2. d4 {[%clk 0:02:53]} 2...
d5 {[%clk 0:03:00.8]} 3. exd5 {[%clk 0:02:53.7]} 3... cxd5 {[%clk 0:03:01.3]} 4.
Bd3 {[%clk 0:02:54.1]} 4... Nc6 {[%clk 0:03:01.5]} 5. c3 {[%clk 0:02:54.3]} 5...
Nf6 {[%clk 0:03:02.1]} 6. Bf4 {[%clk 0:02:54.3]} 6... Bg4 {[%clk 0:02:51.7]} 7.
Qb3 {[%clk 0:02:53]} 7... Qc8 {[%clk 0:02:47.5]} 8. Nd2 {[%clk 0:02:49.2]} 8...
e6 {[%clk 0:02:45.1]} 9. Ngf3 {[%clk 0:02:48.6]} 9... Be7 {[%clk 0:02:39.6]} 10.
O-O {[%clk 0:02:47.3]} 10... O-O {[%clk 0:02:39.3]} 11. Rae1 {[%clk 0:02:44.9]}
11... Bh5 {[%clk 0:02:32.8]} 12. Ne5 {[%clk 0:02:35.8]} 12... Nxe5 {[%clk
0:02:31.1]} 13. Bxe5 {[%clk 0:02:35.9]} 13... Bg6 {[%clk 0:02:22.6]} 14. Bxg6
{[%clk 0:02:34.8]} 14... hxg6 {[%clk 0:02:23.5]} 15. Bxf6 {[%clk 0:02:11.2]}
15... Bxf6 {[%clk 0:02:23.2]} 16. Nf3 {[%clk 0:02:09.5]} 16... b5 {[%clk
0:02:17.8]} 17. Qxb5 {[%clk 0:02:08]} 17... Rb8 {[%clk 0:02:17]} 18. Qe2 {[%clk
0:02:08.1]} 18... Qc7 {[%clk 0:02:13.5]} 19. Rc1 {[%clk 0:01:56.9]} 19... Rfc8
{[%clk 0:02:11.5]} 20. Rc2 {[%clk 0:01:56.2]} 20... Qa5 {[%clk 0:02:09.6]} 21.
a3 {[%clk 0:01:48]} 21... Qa4 {[%clk 0:02:08.2]} 22. Rfc1 {[%clk 0:01:41]} 22...
Rc4 {[%clk 0:01:58.2]} 23. Ne5 {[%clk 0:01:30.5]} 23... Bxe5 {[%clk 0:01:55.8]}
24. Qxe5 {[%clk 0:01:29.1]} 24... Rb3 {[%clk 0:01:48.3]} 25. g3 {[%clk
0:01:25.7]} 25... Qb5 {[%clk 0:01:47.9]} 26. Qe2 {[%clk 0:01:21]} 26... a5
{[%clk 0:01:47.9]} 27. Rd1 {[%clk 0:01:17.6]} 27... a4 {[%clk 0:01:47.1]} 28.
Rdd2 {[%clk 0:01:17.8]} 28... Qb7 {[%clk 0:01:46.2]} 29. h4 {[%clk 0:01:17.1]}
29... Qe7 {[%clk 0:01:46.2]} 30. Kg2 {[%clk 0:01:16.8]} 30... Qf6 {[%clk
0:01:46.4]} 31. Rd3 {[%clk 0:01:14.1]} 31... Qd8 {[%clk 0:01:34.1]} 32. Rdd2
{[%clk 0:01:08.9]} 32... Qf6 {[%clk 0:01:29]} 33. Qf3 {[%clk 0:01:05.2]} 33...
Qe7 {[%clk 0:01:29.3]} 34. Qg4 {[%clk 0:01:01.7]} 34... Rc8 {[%clk 0:01:21.1]}
35. Qe2 {[%clk 0:00:50.6]} 35... Qb7 {[%clk 0:01:18.2]} 36. Kh2 {[%clk
0:00:49.1]} 36... Rc4 {[%clk 0:01:16.3]} 37. Qe3 {[%clk 0:00:40.1]} 37... Qe7
{[%clk 0:01:15.8]} 38. Qf4 {[%clk 0:00:38.9]} 38... Kf8 {[%clk 0:01:14.2]} 39.
Re2 {[%clk 0:00:35]} 39... Ke8 {[%clk 0:01:11.8]} 40. Qe5 {[%clk 0:00:33.6]}
40... Kf8 {[%clk 0:01:08]} 41. h5 {[%clk 0:00:28.4]} 41... gxh5 {[%clk
0:00:58.6]} 42. Qxh5 {[%clk 0:00:27.9]} 42... Qf6 {[%clk 0:00:56.9]} 43. Qh8+
{[%clk 0:00:22.6]} 43... Ke7 {[%clk 0:00:57.1]} 44. Kg2 {[%clk 0:00:21.3]} 44...
Qg6 {[%clk 0:00:44.5]} 45. Qa8 {[%clk 0:00:19.7]} 45... Qf5 {[%clk 0:00:25.9]}
46. Qxa4 {[%clk 0:00:17.3]} 46... Rxa4 {[%clk 0:00:24.7]} 0-1

[Event "*** Titled Tuesday Blitz"]
[Site "Chess.com"]
[Date "2020.12.01"]
[Round "10"]
[White "aleksey1203borisovi4"]
[Black "Mambastik-Fantastic"]
[Result "1-0"]
[WhiteElo "2477"]
[BlackElo "2332"]
[TimeControl "180+1"]
[EndTime "11:55:08 PST"]
[Termination "aleksey1203borisovi4 won by resignation"]

1. g3 {[%clk 0:03:00.1]} 1... d5 {[%clk 0:02:59.7]} 2. Bg2 {[%clk 0:03:01]} 2...
Nf6 {[%clk 0:02:59.3]} 3. d3 {[%clk 0:02:58.5]} 3... Bg4 {[%clk 0:02:58.2]} 4.
Nf3 {[%clk 0:02:58.2]} 4... Nbd7 {[%clk 0:02:56.9]} 5. O-O {[%clk 0:02:55.8]}
5... e6 {[%clk 0:02:57]} 6. c4 {[%clk 0:02:53.3]} 6... c6 {[%clk 0:02:57.2]} 7.
Nc3 {[%clk 0:02:51.9]} 7... Bc5 {[%clk 0:02:57]} 8. d4 {[%clk 0:02:51.2]} 8...
Bb6 {[%clk 0:02:56.6]} 9. cxd5 {[%clk 0:02:52]} 9... exd5 {[%clk 0:02:56.1]} 10.
Bg5 {[%clk 0:02:50.3]} 10... O-O {[%clk 0:02:55.8]} 11. h3 {[%clk 0:02:49.2]}
11... Bh5 {[%clk 0:02:55.2]} 12. a4 {[%clk 0:02:47.4]} 12... Re8 {[%clk
0:02:53.3]} 13. e3 {[%clk 0:02:42.8]} 13... a5 {[%clk 0:02:52.1]} 14. Qb3 {[%clk
0:02:37.7]} 14... h6 {[%clk 0:02:50.8]} 15. Bxf6 {[%clk 0:02:37.3]} 15... Nxf6
{[%clk 0:02:42.2]} 16. Ne5 {[%clk 0:02:36.5]} 16... Rb8 {[%clk 0:02:23.5]} 17.
g4 {[%clk 0:02:23.1]} 17... Bg6 {[%clk 0:02:22.4]} 18. Nxg6 {[%clk 0:02:16.5]}
18... fxg6 {[%clk 0:02:22.5]} 19. Ne2 {[%clk 0:02:14.7]} 19... Kh7 {[%clk
0:02:20.9]} 20. Qc3 {[%clk 0:01:41.5]} 20... Bc7 {[%clk 0:02:19.9]} 21. b4
{[%clk 0:01:41.1]} 21... Ne4 {[%clk 0:02:15.8]} 22. Qb2 {[%clk 0:01:38.6]} 22...
Qd6 {[%clk 0:02:08.9]} 23. Rfb1 {[%clk 0:01:38.3]} 23... Qh2+ {[%clk 0:02:02.1]}
24. Kf1 {[%clk 0:01:38]} 24... Rf8 {[%clk 0:01:56.5]} 25. f4 {[%clk 0:01:24]}
25... Rbe8 {[%clk 0:01:23.3]} 26. bxa5 {[%clk 0:01:20]} 26... Bxa5 {[%clk
0:01:17.7]} 27. Rd1 {[%clk 0:01:12.7]} 27... Ng5 {[%clk 0:01:04.5]} 28. Ra3
{[%clk 0:00:55.5]} 28... Nxh3 {[%clk 0:01:01.4]} 29. Qxb7 {[%clk 0:00:46.7]}
29... Ng5 {[%clk 0:00:22.7]} 30. Qxc6 {[%clk 0:00:43.3]} 30... Bb4 {[%clk
0:00:15.5]} 31. Rb3 {[%clk 0:00:42.2]} 31... Rb8 {[%clk 0:00:09.3]} 32. Qxd5
{[%clk 0:00:40.8]} 32... Nf7 {[%clk 0:00:08.3]} 33. Qc4 {[%clk 0:00:34.8]} 33...
Bd6 {[%clk 0:00:07]} 34. Rxb8 {[%clk 0:00:34.5]} 34... Bxb8 {[%clk 0:00:07.1]}
35. Qd5 {[%clk 0:00:31.2]} 35... Qh4 {[%clk 0:00:06.7]} 36. Qf3 {[%clk
0:00:29.6]} 36... Nd6 {[%clk 0:00:06.8]} 37. Qg3 {[%clk 0:00:28.8]} 37... Qe7
{[%clk 0:00:06.7]} 38. Nc3 {[%clk 0:00:27.2]} 38... g5 {[%clk 0:00:06.8]} 39.
Nd5 {[%clk 0:00:26.2]} 39... gxf4 {[%clk 0:00:06.1]} 40. exf4 {[%clk 0:00:21.2]}
40... Nc4 {[%clk 0:00:05.2]} 41. Nxe7 {[%clk 0:00:17.3]} 1-0